lending/lending_fUSD_20250131
["ID","MTS","AMOUNT","RATE_DAILY","PERIOD"]
[351094355,1738331451749,-500.0,0.00016712,2]
[351094356,1738331451759,-565.58,0.00016712,2]
[351094357,1738331451769,-500.0,0.00016712,2]
[351094358,1738331451779,-500.0,0.00016712,2]
[351094359,1738331451789,-867.08,0.00016712,2]
[351094360,1738331451798,-500.0,0.00016712,2]
[351094361,1738331451808,-746.6,0.00016712,2]
[351094362,1738331451817,-500.0,0.00016712,2]
[351094363,1738331451826,-500.0,0.00016712,2]
[351094364,1738331451835,-628.99,0.00016712,2]
[351094365,1738331451844,-539.08,0.00016712,2]
[351094366,1738331451854,-500.0,0.00016712,2]
[351094367,1738331451863,-500.0,0.00016712,2]
[351094368,1738331451873,-632.37,0.00016712,2]
[351094369,1738331451883,-500.0,0.00016712,2]
[351094370,1738331451892,-621.17,0.00016712,2]
[351094371,1738331451901,-1249.8,0.00016712,2]
[351094372,1738331451910,-533.09,0.00016712,2]
[351094373,1738331451922,-1138.51,0.00016712,2]
[351094374,1738331451933,-500.0,0.00016712,2]
[351094375,1738331451942,-1669.07,0.00016712,2]
[351094376,1738331451952,-500.0,0.00016712,2]
[351094377,1738331451962,-1201.96,0.00016712,2]
[351094378,1738331451971,-500.0,0.00016712,2]
[351094379,1738331451981,-573.56,0.00016712,2]
[351094380,1738331451990,-500.0,0.00016712,2]
[351094381,1738331452001,-500.0,0.00016712,2]
[351094382,1738331452011,-500.0,0.00016712,2]
[351094383,1738331452021,-500.0,0.00016712,2]
[351094384,1738331452030,-500.0,0.00016712,2]
[351094385,1738331452040,-2175.56,0.00016712,2]
[351094386,1738331452050,-1109.12,0.00016712,2]
[351094387,1738331452059,-628.9,0.00016712,2]
[351094388,1738331452068,-817.41,0.00016712,2]
[351094389,1738331452078,-500.0,0.00016712,2]
[351094390,1738331452087,-589.99,0.00016712,2]
[351094391,1738331452096,-1123.14,0.00016712,2]
[351094392,1738331452106,-730.15,0.00016712,2]
[351094393,1738331452115,-500.0,0.00016712,2]
[351094394,1738331452124,-500.0,0.00016712,2]
[351094395,1738331452134,-500.0,0.00016712,2]
[351094396,1738331452143,-1096.5,0.00016712,2]
[351094397,1738331452153,-1589.69,0.00016712,2]
[351094398,1738331452163,-4466.76,0.00016712,2]
[351094399,1738331452172,-500.0,0.00016712,2]
[351094400,1738331452181,-500.0,0.00016712,2]
[351094401,1738331452191,-500.0,0.00016712,2]
[351094402,1738331452200,-500.0,0.00016712,2]
[351094403,1738331452210,-500.0,0.00016712,2]
[351094404,1738331452219,-500.0,0.00016712,2]
[351094405,1738331452228,-811.64,0.00016712,2]
[351094406,1738331452238,-1038.63,0.00016712,2]
[351094407,1738331452247,-2383.87,0.00016712,2]
[351094408,1738331452257,-1714.39,0.00016712,2]
[351094409,1738331452266,-500.0,0.00016712,2]
[351094410,1738331452276,-500.0,0.00016712,2]
[351094411,1738331452285,-643.52,0.00016712,2]
[351094412,1738331452294,-653.94,0.00016712,2]
[351094413,1738331452303,-575.79,0.00016712,2]
[351094414,1738331452313,-1408.5,0.00016712,2]
[351094415,1738331452322,-579.23,0.00016712,2]
[351094416,1738331452332,-500.0,0.00016712,2]
[351094417,1738331452341,-500.0,0.00016712,2]
[351094418,1738331452350,-857.15,0.00016712,2]
[351094419,1738331452360,-1443.72,0.00016712,2]
[351094420,1738331452370,-500.0,0.00016712,2]
[351094421,1738331452379,-2347.18,0.00016712,2]
[351094422,1738331452389,-3749.58,0.00016712,2]
[351094423,1738331452398,-1881.99,0.00016712,2]
[351094424,1738331452407,-500.0,0.00016712,2]
[351094425,1738331452416,-500.0,0.00016712,2]
[351094426,1738331452425,-1192.43,0.00016712,2]
[351094427,1738331452435,-2537.4,0.00016712,2]
[351094428,1738331452444,-529.84,0.00016712,2]
[351094429,1738331452453,-500.0,0.00016712,2]
[351094430,1738331452463,-511.01,0.00016712,2]
[351094431,1738331452472,-520.15,0.00016712,2]
[351094432,1738331452481,-500.0,0.00016712,2]
[351094433,1738331452491,-686.71,0.00016712,2]
[351094434,1738331452500,-500.0,0.00016712,2]
[351094435,1738331452509,-760.48,0.00016712,2]
[351094436,1738331452518,-500.0,0.00016712,2]
[351094437,1738331452528,-500.0,0.00016712,2]
[351094438,1738331452537,-1242.43,0.00016712,2]
[351094439,1738331452546,-500.0,0.00016712,2]
[351094440,1738331452555,-1563.35,0.00016712,2]
[351094441,1738331452565,-660.74,0.00016712,2]
[351094442,1738331452574,-1655.73,0.00016712,2]
[351094443,1738331452584,-1736.45,0.00016712,2]
[351094444,1738331452594,-500.0,0.00016712,2]
[351094445,1738331452603,-1241.45,0.00016712,2]
[351094446,1738331452614,-4452.16,0.00016712,2]
[351094447,1738331452623,-3401.87,0.00016712,2]
[351094448,1738331452632,-751.24,0.00016712,2]
[351094449,1738331452642,-500.0,0.00016712,2]
[351094450,1738331452651,-3290.56,0.00016712,2]
[351094451,1738331452661,-500.0,0.00016712,2]
[351094452,1738331452670,-500.0,0.00016712,2]
[351094453,1738331452679,-1295.48,0.00016712,2]
[351094454,1738331452689,-1891.53,0.00016712,2]
[351094455,1738331452699,-3805.98,0.00016712,2]
[351094456,1738331452709,-500.0,0.00016712,2]
[351094457,1738331452718,-762.01,0.00016712,2]
[351094458,1738331452728,-965.0,0.00016712,2]
[351094459,1738331452738,-1482.09,0.00016712,2]
[351094460,1738331452747,-2173.05,0.00016712,2]
[351094461,1738331452757,-500.0,0.00016712,2]
[351094462,1738331452766,-500.0,0.00016712,2]
[351094463,1738331452776,-500.0,0.00016712,2]
[351094464,1738331452785,-500.0,0.00016712,2]
[351094465,1738331452794,-500.0,0.00016712,2]
[351094466,1738331452804,-500.0,0.00016712,2]
[351094467,1738331452813,-2117.77,0.00016712,2]
[351094468,1738331452822,-822.18,0.00016712,2]
[351094469,1738331452832,-2597.78,0.00016712,2]
[351094470,1738331452841,-500.0,0.00016712,2]
[351094471,1738331452851,-3322.12,0.00016712,2]
[351094472,1738331452860,-672.46,0.00016712,2]
[351094473,1738331452870,-500.0,0.00016712,2]
[351094474,1738331452879,-801.38,0.00016712,2]
[351094475,1738331452889,-647.32,0.00016712,2]
[351094476,1738331452899,-1456.0,0.00016712,2]
[351094477,1738331452909,-1603.32,0.00016712,2]
[351094478,1738331452919,-500.0,0.00016712,2]
[351094479,1738331452932,-500.0,0.00016712,2]
[351094480,1738331452942,-1251.4,0.00016712,2]
[351094481,1738331452952,-1067.36,0.00016712,2]
[351094482,1738331452962,-680.04,0.00016712,2]
[351094483,1738331452972,-925.79,0.00016712,2]
[351094484,1738331452981,-500.0,0.00016712,2]
[351094485,1738331452990,-2038.93,0.00016712,2]
[351094486,1738331453001,-2395.79,0.00016712,2]
[351094487,1738331453010,-500.0,0.00016712,2]
[351094488,1738331453020,-500.0,0.00016712,2]
[351094489,1738331453029,-500.0,0.00016712,2]
[351094490,1738331453038,-500.0,0.00016712,2]
[351094491,1738331453047,-790.46,0.00016712,2]
[351094492,1738331453056,-3425.97,0.00016712,2]
[351094493,1738331453066,-500.0,0.00016712,2]
[351094494,1738331453075,-500.0,0.00016712,2]
[351094495,1738331453084,-1665.2,0.00016712,2]
[351094496,1738331453093,-895.49,0.00016712,2]
[351094497,1738331453103,-816.67,0.00016712,2]
[351094498,1738331453112,-529.88,0.00016712,2]
[351094499,1738331453121,-1548.78,0.00016712,2]
[351094500,1738331453130,-1163.85,0.00016712,2]
[351094501,1738331453140,-500.0,0.00016712,2]
[351094502,1738331453149,-1306.7,0.00016712,2]
[351094503,1738331453159,-500.0,0.00016712,2]
[351094504,1738331453168,-500.0,0.00016712,2]
[351094505,1738331453178,-4114.06,0.00016712,2]
[351094506,1738331453187,-500.0,0.00016712,2]
[351094507,1738331453198,-983.48,0.00016712,2]
[351094508,1738331453207,-500.0,0.00016712,2]
[351094509,1738331453217,-1271.81,0.00016712,2]
[351094510,1738331453227,-500.0,0.00016712,2]
[351094511,1738331453236,-638.61,0.00016712,2]
[351094512,1738331453246,-1339.53,0.00016712,2]
[351094513,1738331453255,-1223.81,0.00016712,2]
[351094514,1738331453264,-500.0,0.00016712,2]
[351094515,1738331453274,-500.0,0.00016712,2]
[351094516,1738331453283,-175.68,0.0001673,2]
[351094517,1738331453292,-2934.9827,0.00016749,2]
[351094518,1738331453301,-1027.5517,0.00016749,2]
[351094519,1738331453311,-500.0,0.00016848,2]
[351094520,1738331453320,-500.0,0.00016848,2]
[351094521,1738331453329,-500.0,0.00016848,2]
[351094522,1738331453338,-500.0,0.00016848,2]
[351094523,1738331453348,-500.0,0.00016848,2]
[351094524,1738331453357,-500.0,0.00016848,2]
[351094525,1738331453367,-500.0,0.00016848,2]
[351094526,1738331453376,-500.0,0.00016848,2]
[351094527,1738331453385,-500.0,0.00016848,2]
[351094528,1738331453394,-500.0,0.00016848,2]
[351094529,1738331453404,-500.0,0.00016848,2]
[351094530,1738331453413,-500.0,0.00016848,2]
[351094531,1738331453422,-270.0312611,0.00016848,2]
[351094532,1738331453705,-229.9687389,0.00016848,2]
[351094533,1738331453715,-310.5969353,0.00016848,2]
[351094534,1738331453727,-189.4030647,0.00016848,2]
[351094535,1738331453736,-500.0,0.00016848,2]
[351094536,1738331453745,-500.0,0.00016848,2]
[351094537,1738331453755,-500.0,0.00016848,2]
[351094538,1738331453764,-500.0,0.00016848,2]
[351094539,1738331453774,-500.0,0.00016848,2]
[351094540,1738331453785,-500.0,0.00016848,2]
[351094541,1738331453794,-500.0,0.00016848,2]
[351094542,1738331453804,-500.0,0.00016848,2]
[351094543,1738331453813,-500.0,0.00016848,2]
[351094544,1738331453823,-500.0,0.00016848,2]
[351094545,1738331453832,-500.0,0.00016848,2]
[351094546,1738331453843,-500.0,0.00016848,2]
[351094547,1738331453853,-403.8731366,0.00016848,2]
[351094548,1738331453865,-96.1268634,0.00016848,2]
[351094549,1738331453874,-585.69536872,0.00016849,2]
[351094550,1738331453885,-31.58710228,0.00016849,2]
[351094551,1738331453894,-529.48,0.00016849,2]
[351094552,1738331453904,-500.0,0.00016849,2]
[351094553,1738331453914,-901.463894,0.00016849,2]
[351094554,1738331453926,-500.0,0.00016849,2]
[351094555,1738331453935,-500.0,0.00016849,2]
[351094556,1738331453945,-500.0,0.00016849,2]
[351094557,1738331453956,-500.0,0.00016849,2]
[351094558,1738331453970,-542.88312036,0.00016849,2]
[351094559,1738331453984,-500.0,0.00016849,2]
[351094560,1738331453998,-500.0,0.00016849,2]
[351094561,1738331454009,-511.23,0.00016849,2]
[351094562,1738331454020,-500.0,0.00016849,2]
[351094563,1738331454033,-500.0,0.00016849,2]
[351094564,1738331454045,-500.0,0.00016849,2]
[351094565,1738331454057,-500.0,0.00016849,2]
[351094566,1738331454069,-500.0,0.00016849,2]
[351094567,1738331454081,-500.0,0.00016849,2]
[351094568,1738331454093,-150.38479784,0.00016849,2]
[351094569,1738331454106,-500.0,0.00016849,2]
[351094570,1738331454117,-500.0,0.00016849,2]
[351094571,1738331454129,-500.0,0.00016849,2]
[351094572,1738331454139,-293.11022052,0.00016849,2]
[351094573,1738331454161,-206.88977948,0.00016849,2]
[351094574,1738331454172,-419.59022052,0.00016849,2]
[351094575,1738331454187,-80.40977948,0.00016849,2]
[351094576,1738331454200,-500.0,0.00016849,2]
[351094577,1738331454214,-476.64621842,0.00016849,2]
[351094578,1738331454229,-23.35378158,0.00016849,2]
[351094579,1738331454242,-500.0,0.00016849,2]
[351094580,1738331454255,-500.0,0.00016849,2]
[351094581,1738331454266,-500.0,0.00016849,2]
[351094582,1738331454280,-17.89621838,0.00016849,2]
[351094583,1738331454796,-20.53299203,0.00016849,2]
[351094584,1738331454809,-461.57078959,0.00016849,2]
[351094585,1738331454820,-500.0,0.00016849,2]
[351094586,1738331454831,-500.0,0.00016849,2]
[351094587,1738331454842,-500.0,0.00016849,2]
[351094588,1738331454853,-500.0,0.00016849,2]
[351094589,1738331454864,-500.0,0.00016849,2]
[351094590,1738331454875,-500.0,0.00016849,2]
[351094591,1738331454886,-500.0,0.00016849,2]
[351094592,1738331454897,-925.72,0.00016849,2]
[351094593,1738331454908,-500.0,0.00016849,2]
[351094594,1738331454921,-504.28,0.00016849,2]
[351094595,1738331454933,-500.0,0.00016849,2]
[351094596,1738331454945,-381.66669924,0.00016849,2]
[351094597,1738331454956,-500.0,0.00016849,2]
[351094598,1738331454968,-1000.75,0.00016849,2]
[351094599,1738331454979,-500.0,0.00016849,2]
[351094600,1738331454990,-500.0,0.00016849,2]
[351094601,1738331455002,-833.39,0.00016849,2]
[351094602,1738331455013,-500.0,0.00016849,2]
[351094603,1738331455024,-847.51,0.00016849,2]
[351094604,1738331455035,-642.66,0.00016849,2]
[351094605,1738331455045,-620.46,0.00016849,2]
[351094606,1738331455057,-500.0,0.00016849,2]
[351094607,1738331455068,-500.0,0.00016849,2]
[351094608,1738331455079,-710.95,0.00016849,2]
[351094609,1738331455090,-751.82,0.00016849,2]
[351094610,1738331455101,-500.0,0.00016849,2]
[351094611,1738331455111,-500.0,0.00016849,2]
[351094612,1738331455122,-707.01,0.00016849,2]
[351094613,1738331455133,-728.49,0.00016849,2]
[351094614,1738331455144,-500.0,0.00016849,2]
[351094615,1738331455154,-667.53,0.00016849,2]
[351094616,1738331455165,-688.95,0.00016849,2]
[351094617,1738331455176,-500.0,0.00016849,2]
[351094618,1738331455187,-13.10074518,0.00016849,2]
[351094619,1738331455201,-461.2000035,0.00016849,2]
[351094620,1738331455215,-25.69925132,0.00016849,2]
[351094621,1738331455226,-500.0,0.00016849,2]
[351094622,1738331455236,-500.0,0.00016849,2]
[351094623,1738331455247,-580.39757019,0.00016849,2]
[351094624,1738331455260,-487.62242981,0.00016849,2]
[351094625,1738331455271,-429.23757019,0.00016849,2]
[351094626,1738331455284,-70.76242981,0.00016849,2]
[351094627,1738331455295,-417.72902881,0.00016849,2]
[351094628,1738331455347,-82.27097119,0.00016849,2]
[351094629,1738331455357,-500.0,0.00016849,2]
[351094630,1738331455368,-500.0,0.00016849,2]
[351094631,1738331455379,-500.0,0.00016849,2]
[351094632,1738331455389,-207.16419749,0.00016849,2]
[351094633,1738331455405,-402.95580251,0.00016849,2]
[351094634,1738331455416,-500.0,0.00016849,2]
[351094635,1738331455426,-614.16,0.00016849,2]
[351094636,1738331455437,-728.4,0.00016849,2]
[351094637,1738331455448,-61.75884484,0.00016849,2]
[351094638,1738331455461,-438.24115516,0.00016849,2]
[351094639,1738331455472,-500.0,0.00016849,2]
[351094640,1738331455483,-936.4,0.00016849,2]
[351094641,1738331455493,-619.78,0.00016849,2]
[351094642,1738331455504,-1117.34,0.00016849,2]
[351094643,1738331455515,-554.53,0.00016849,2]
[351094644,1738331455526,-500.0,0.00016849,2]
[351094645,1738331455537,-500.0,0.00016849,2]
[351094646,1738331455548,-500.0,0.00016849,2]
[351094647,1738331455559,-647.75,0.00016849,2]
[351094648,1738331455570,-1098.68,0.00016849,2]
[351094649,1738331455580,-625.34,0.00016849,2]
[351094650,1738331455591,-599.59,0.00016849,2]
[351094651,1738331455602,-1242.52,0.00016849,2]
[351094652,1738331455613,-668.66,0.00016849,2]
[351094653,1738331455624,-500.0,0.00016849,2]
[351094654,1738331455634,-879.23,0.00016849,2]
[351094655,1738331455645,-500.0,0.00016849,2]
[351094656,1738331455656,-500.0,0.00016849,2]
[351094657,1738331455667,-500.0,0.00016849,2]
[351094658,1738331455679,-500.0,0.00016849,2]
[351094659,1738331455689,-568.63,0.00016849,2]
[351094660,1738331455700,-513.99,0.00016849,2]
[351094661,1738331455712,-604.15,0.00016849,2]
[351094662,1738331455724,-1266.01,0.00016849,2]
[351094663,1738331455735,-505.52,0.00016849,2]
[351094664,1738331455748,-637.65,0.00016849,2]
[351094665,1738331455761,-500.0,0.00016849,2]
[351094666,1738331455773,-804.7,0.00016849,2]
[351094667,1738331455785,-500.0,0.00016849,2]
[351094668,1738331455796,-500.0,0.00016849,2]
[351094669,1738331455807,-500.0,0.00016849,2]
[351094670,1738331455818,-500.0,0.00016849,2]
[351094671,1738331455830,-714.34,0.00016849,2]
[351094672,1738331455841,-512.03,0.00016849,2]
[351094673,1738331455852,-506.21,0.00016849,2]
[351094674,1738331455863,-698.71,0.00016849,2]
[351094675,1738331455873,-598.32,0.00016849,2]
[351094676,1738331455884,-604.38,0.00016849,2]
[351094677,1738331455895,-500.0,0.00016849,2]
[351094678,1738331455906,-500.0,0.00016849,2]
[351094679,1738331455917,-500.0,0.00016849,2]
[351094680,1738331455932,-563.98,0.00016849,2]
[351094681,1738331455945,-903.25,0.00016849,2]
[351094682,1738331455957,-500.0,0.00016849,2]
[351094683,1738331455968,-1045.44,0.00016849,2]
[351094684,1738331455977,-500.0,0.00016849,2]
[351094685,1738331455988,-500.0,0.00016849,2]
[351094686,1738331455997,-576.95,0.00016849,2]
[351094687,1738331456007,-753.7,0.00016849,2]
[351094688,1738331456017,-500.0,0.00016849,2]
[351094689,1738331456026,-500.0,0.00016849,2]
[351094690,1738331456036,-500.0,0.00016849,2]
[351094691,1738331456045,-500.0,0.00016849,2]
[351094692,1738331456054,-574.63,0.00016849,2]
[351094693,1738331456064,-500.0,0.00016849,2]
[351094694,1738331456073,-500.0,0.00016849,2]
[351094695,1738331456082,-500.0,0.00016849,2]
[351094696,1738331456092,-500.0,0.00016849,2]
[351094697,1738331456102,-500.0,0.00016849,2]
[351094698,1738331456111,-500.0,0.00016849,2]
[351094699,1738331456120,-500.0,0.00016849,2]
[351094700,1738331456129,-592.48,0.00016849,2]
[351094701,1738331456139,-665.35,0.00016849,2]
[351094702,1738331456148,-500.0,0.00016849,2]
[351094703,1738331456158,-500.0,0.00016849,2]
[351094704,1738331456167,-530.11,0.00016849,2]
[351094705,1738331456177,-647.27,0.00016849,2]
[351094706,1738331456187,-987.2,0.00016849,2]
[351094707,1738331456196,-500.0,0.00016849,2]
[351094708,1738331456205,-905.39,0.00016849,2]
[351094709,1738331456215,-500.0,0.00016849,2]
[351094710,1738331456225,-506.19,0.00016849,2]
[351094711,1738331456234,-532.84,0.00016849,2]
[351094712,1738331456244,-500.0,0.00016849,2]
[351094713,1738331456254,-500.0,0.00016849,2]
[351094714,1738331456264,-551.38,0.00016849,2]
[351094715,1738331456273,-654.39,0.00016849,2]
[351094716,1738331456283,-500.0,0.00016849,2]
[351094717,1738331456293,-548.68,0.00016849,2]
[351094718,1738331456302,-515.59,0.00016849,2]
[351094719,1738331456312,-622.39,0.00016849,2]
[351094720,1738331456321,-500.0,0.00016849,2]
[351094721,1738331456331,-500.0,0.00016849,2]
[351094722,1738331456340,-500.0,0.00016849,2]
[351094723,1738331456350,-500.0,0.00016849,2]
[351094724,1738331456359,-658.0,0.00016849,2]
[351094725,1738331456368,-500.0,0.00016849,2]
[351094726,1738331456378,-642.06,0.00016849,2]
[351094727,1738331456387,-620.7399869,0.00016849,2]
[351094728,1738331456396,-500.0,0.00016849,2]
[351094729,1738331456406,-954.91,0.00016849,2]
[351094730,1738331456415,-500.0,0.00016849,2]
[351094731,1738331456425,-929.67,0.00016849,2]
[351094732,1738331456434,-500.0,0.00016849,2]
[351094733,1738331456443,-809.48,0.00016849,2]
[351094734,1738331456453,-665.8,0.00016849,2]
[351094735,1738331456462,-500.0,0.00016849,2]
[351094736,1738331456473,-503.66,0.00016849,2]
[351094737,1738331456483,-500.0,0.00016849,2]
[351094738,1738331456492,-500.0,0.00016849,2]
[351094739,1738331456502,-500.0,0.00016849,2]
[351094740,1738331456511,-529.48,0.00016849,2]
[351094741,1738331456521,-1177.92,0.00016849,2]
[351094742,1738331456530,-500.0,0.00016849,2]
[351094743,1738331456539,-500.0,0.00016849,2]
[351094744,1738331456549,-500.0,0.00016849,2]
[351094745,1738331456558,-500.0,0.00016849,2]
[351094746,1738331456567,-585.22,0.00016849,2]
[351094747,1738331456576,-741.83,0.00016849,2]
[351094748,1738331456586,-1143.7,0.00016849,2]
[351094749,1738331456595,-500.0,0.00016849,2]
[351094750,1738331456605,-500.0,0.00016849,2]
[351094751,1738331456614,-1123.38,0.00016849,2]
[351094752,1738331456624,-500.0,0.00016849,2]
[351094753,1738331456633,-500.0,0.00016849,2]
[351094754,1738331456643,-604.02822667,0.00016849,2]
[351094755,1738331456652,-3649.85,0.00016849,2]
[351094756,1738331456661,-687.76,0.00016849,2]
[351094757,1738331456672,-1730.6,0.00016849,2]
[351094758,1738331456681,-500.0,0.00016849,2]
[351094759,1738331456691,-500.0,0.00016849,2]
[351094760,1738331456700,-500.0,0.00016849,2]
[351094761,1738331456710,-500.0,0.00016849,2]
[351094762,1738331456720,-500.0,0.00016849,2]
[351094763,1738331456730,-1571.6,0.00016849,2]
[351094764,1738331456739,-2554.92,0.00016849,2]
[351094765,1738331456750,-500.0,0.00016849,2]
[351094766,1738331456760,-1876.2,0.00016849,2]
[351094767,1738331456770,-620.89,0.00016849,2]
[351094768,1738331456780,-735.41,0.00016849,2]
[351094769,1738331456789,-1603.61,0.00016849,2]
[351094770,1738331456799,-1068.2,0.00016849,2]
[351094771,1738331456808,-500.0,0.00016849,2]
[351094772,1738331456818,-542.84,0.00016849,2]
[351094773,1738331457309,-500.0,0.00016849,2]
[351094774,1738331457328,-786.27,0.00016849,2]
[351094775,1738331457346,-500.0,0.00016849,2]
[351094776,1738331457363,-500.0,0.00016849,2]
[351094777,1738331457375,-500.0,0.00016849,2]
[351094778,1738331457384,-739.89,0.00016849,2]
[351094779,1738331457394,-1000.0,0.00016849,2]
[351094780,1738331457403,-739.7,0.00016849,2]
[351094781,1738331457413,-536.25,0.00016849,2]
[351094782,1738331457423,-712.4,0.00016849,2]
[351094783,1738331457433,-956.81,0.00016849,2]
[351094784,1738331457442,-500.0,0.00016849,2]
[351094785,1738331457451,-860.82,0.00016849,2]
[351094786,1738331457461,-1196.83,0.00016849,2]
[351094787,1738331457471,-829.0,0.00016849,2]
[351094788,1738331457480,-500.0,0.00016849,2]
[351094789,1738331457489,-516.86,0.00016849,2]
[351094790,1738331457499,-1377.77,0.00016849,2]
[351094791,1738331457508,-500.0,0.00016849,2]
[351094792,1738331457518,-500.0,0.00016849,2]
[351094793,1738331457529,-1664.34,0.00016849,2]
[351094794,1738331457538,-500.0,0.00016849,2]
[351094795,1738331457548,-2818.25,0.00016849,2]
[351094796,1738331457557,-500.0,0.00016849,2]
[351094797,1738331457566,-782.42,0.00016849,2]
[351094798,1738331457575,-911.31,0.00016849,2]
[351094799,1738331457585,-599.89,0.00016849,2]
[351094800,1738331457594,-500.0,0.00016849,2]
[351094801,1738331457603,-918.57,0.00016849,2]
[351094802,1738331457612,-1313.52,0.00016849,2]
[351094803,1738331457622,-500.0,0.00016849,2]
[351094804,1738331457631,-1388.21,0.00016849,2]
[351094805,1738331457640,-2575.37,0.00016849,2]
[351094806,1738331457650,-500.0,0.00016849,2]
[351094807,1738331457659,-565.58,0.00016849,2]
[351094808,1738331457669,-500.0,0.00016849,2]
[351094809,1738331457678,-867.08,0.00016849,2]
[351094810,1738331457687,-500.0,0.00016849,2]
[351094811,1738331457697,-746.6,0.00016849,2]
[351094812,1738331457706,-500.0,0.00016849,2]
[351094813,1738331457715,-500.0,0.00016849,2]
[351094814,1738331457725,-628.99,0.00016849,2]
[351094815,1738331457734,-539.08,0.00016849,2]
[351094816,1738331457743,-500.0,0.00016849,2]
[351094817,1738331457753,-500.0,0.00016849,2]
[351094818,1738331457762,-632.37,0.00016849,2]
[351094819,1738331457771,-500.0,0.00016849,2]
[351094820,1738331457780,-621.17,0.00016849,2]
[351094821,1738331457790,-1249.8,0.00016849,2]
[351094822,1738331457799,-533.09,0.00016849,2]
[351094823,1738331457808,-1138.51,0.00016849,2]
[351094824,1738331457817,-500.0,0.00016849,2]
[351094825,1738331457826,-1669.07,0.00016849,2]
[351094826,1738331457837,-1201.96,0.00016849,2]
[351094827,1738331457846,-500.0,0.00016849,2]
[351094828,1738331457856,-573.56,0.00016849,2]
[351094829,1738331457865,-468.20476881,0.00016849,2]
[351094830,1738331457874,-500.0,0.00016849,2]
[351094831,1738331457884,-500.0,0.00016849,2]
[351094832,1738331457894,-500.0,0.00016849,2]
[351094833,1738331457904,-500.0,0.00016849,2]
[351094834,1738331457914,-2175.56,0.00016849,2]
[351094835,1738331457927,-1109.12,0.00016849,2]
[351094836,1738331457936,-628.9,0.00016849,2]
[351094837,1738331457945,-817.41,0.00016849,2]
[351094838,1738331457954,-589.99,0.00016849,2]
[351094839,1738331457964,-1123.14,0.00016849,2]
[351094840,1738331457974,-730.15,0.00016849,2]
[351094841,1738331457983,-500.0,0.00016849,2]
[351094842,1738331457992,-500.0,0.00016849,2]
[351094843,1738331458002,-594.43580543,0.00016849,2]
[351094844,1738331458012,-1589.69,0.00016849,2]
[351094845,1738331458021,-4466.76,0.00016849,2]
[351094846,1738331458030,-1096.5,0.00016849,2]
[351094847,1738331458039,-616.35563631,0.00016849,2]
[351094848,1738331458049,-500.0,0.00016849,2]
[351094849,1738331458058,-500.0,0.00016849,2]
[351094850,1738331458067,-500.0,0.00016849,2]
[351094851,1738331458077,-500.0,0.00016849,2]
[351094852,1738331458086,-500.0,0.00016849,2]
[351094853,1738331458096,-811.64,0.00016849,2]
[351094854,1738331458106,-1038.63,0.00016849,2]